bitfinex/quotes_SOLUSD_20240703
["timestamp","ask_amount","ask_price","bid_price","bid_amount"]
[1720028275792,20.2259,142.74,142.69,59.62146009]
[1720028276156,20.2259,142.74,142.7,7.0076]
[1720028277055,7.0059,142.74,142.7,7.0076]
[1720028280290,7.0059,142.74,142.71,1.40132665]
[1720028280459,20.0,142.77,142.72,17.5163]
[1720028280665,20.225,142.76,142.72,17.5163]
[1720028280894,7.0052,142.75,142.72,17.5163]
[1720028281097,20.0,142.74,142.71,66.62816761]
[1720028281595,20.0,142.74,142.71,46.40126761]
[1720028284206,27.0058,142.74,142.71,46.40126761]
[1720028287687,7.0058,142.74,142.71,46.40126761]
[1720028288309,7.0065,142.73,142.71,45.0]
[1720028288494,7.0065,142.73,142.69,13.22]
[1720028288691,7.0065,142.73,142.7,45.0]
[1720028289604,7.0069,142.72,142.7,45.0]
[1720028289773,13.22,142.74,142.69,45.0]
[1720028289774,7.0064,142.73,142.69,45.0]
[1720028290178,20.0,142.72,142.69,58.22]
[1720028290896,27.0067,142.72,142.69,58.22]
[1720028291077,20.2279,142.7,142.66,0.6104752]
[1720028291491,7.0082,142.69,142.66,0.6104752]
[1720028291697,20.2278,142.7,142.66,0.6104752]
[1720028291903,20.2278,142.7,142.66,2.01210011]
[1720028292601,20.2278,142.7,142.66,22.24170011]
[1720028292602,7.0078,142.7,142.66,22.24170011]
[1720028293802,7.0078,142.7,142.66,9.02170011]
[1720028294178,20.2278,142.7,142.66,9.02170011]
[1720028294712,20.2278,142.7,142.66,2.01210011]
[1720028294879,20.2278,142.7,142.66,47.01210011]
[1720028295199,7.0083,142.69,142.66,47.01210011]
[1720028296199,7.0078,142.7,142.66,47.01210011]
[1720028296373,20.2278,142.7,142.66,47.01210011]
[1720028298003,20.2278,142.7,142.66,54.02170011]
[1720028303810,13.22,142.69,142.66,54.02170011]
[1720028316629,13.22,142.69,142.66,47.01210011]
[1720028316812,13.22,142.69,142.66,2.01210011]
[1720028317013,13.22,142.69,142.66,0.6104752]
[1720028318313,13.22,142.69,142.66,7.6200752]
[1720028320733,7.0074,142.71,142.67,7.009]
[1720028321110,20.0,142.7,142.67,7.009]
[1720028321506,20.0,142.7,142.66,7.6198752]
[1720028328229,27.0078,142.7,142.66,7.6198752]
[1720028328832,27.0078,142.7,142.66,0.6104752]
[1720028328833,13.22,142.67,142.66,0.6104752]
[1720028329337,33.22,142.67,142.66,0.6104752]
[1720028330349,40.2291,142.67,142.66,0.6104752]
[1720028331826,57.752,142.67,142.66,0.6104752]
[1720028332023,46.78,142.67,142.58,16.1916]
[1720028332249,13.22,142.61,142.57,7.0138]
[1720028332424,13.22,142.6,142.57,7.0138]
[1720028334548,13.22,142.6,142.58,52.0135]
[1720028335550,13.22,142.6,142.58,45.0]
[1720028335743,13.22,142.6,142.57,52.0139]
[1720028336238,24.1674,142.68,142.58,14.62250488]
[1720028336443,24.1674,142.68,142.61,7.0118]
[1720028336444,13.22,142.63,142.61,7.0118]
[1720028336646,20.0,142.62,142.6,24.5431]
[1720028336823,20.2306,142.64,142.6,24.5431]
[1720028337149,33.22,142.63,142.6,17.5307]
[1720028337530,13.22,142.62,142.6,24.5433]
[1720028337947,20.0,142.63,142.6,24.5433]
[1720028338152,33.22,142.63,142.6,24.5433]
[1720028340053,29.91438544,142.68,142.62,17.529]
[1720028340054,6.6449,142.68,142.62,17.529]
[1720028340356,13.22,142.65,142.6,13.22]
[1720028340552,13.22,142.65,142.61,53.4138477]
[1720028340553,20.2304,142.65,142.61,53.4138477]
[1720028340945,13.22,142.65,142.61,70.9441477]
[1720028341443,20.0,142.64,142.61,70.9441477]
[1720028341646,27.0107,142.64,142.61,63.9324477]
[1720028341952,20.0,142.64,142.61,46.4021477]
[1720028342147,20.0,142.64,142.61,1.4021477]
[1720028342346,20.0,142.64,142.61,8.4141477]
[1720028342862,7.0121,142.61,142.6,45.0]
[1720028343053,7.0127,142.6,142.56,20.2341]
[1720028343355,20.2317,142.62,142.57,39.17157714]
[1720028343579,20.2317,142.62,142.58,1.40244334]
[1720028343750,40.2321,142.61,142.57,24.5491]
[1720028344132,40.2321,142.61,142.56,13.22]
[1720028344133,33.22,142.61,142.56,8.41677671]
[1720028344330,40.2322,142.61,142.56,8.41677671]
[1720028344551,27.0122,142.61,142.56,21.63677671]
[1720028344758,20.0,142.61,142.58,7.0135]
[1720028344953,13.22,142.62,142.58,7.0135]
[1720028345152,20.0,142.61,142.58,7.0135]
[1720028345354,20.0,142.61,142.57,24.5489]
[1720028345560,27.0121,142.61,142.57,24.5489]
[1720028346064,40.2321,142.61,142.57,25.95142523]
[1720028346645,33.22,142.61,142.57,1.40252523]
[1720028346959,13.22,142.58,142.54,24.5533]
[1720028347349,13.22,142.57,142.54,24.5533]
[1720028347765,13.22,142.57,142.55,1.40284895]
[1720028348068,20.2338,142.58,142.55,1.40284895]
[1720028348544,7.0143,142.57,142.53,20.2358]
[1720028348863,20.2343,142.57,142.53,7.0158]
[1720028349071,7.0146,142.56,142.52,21.0852404]
[1720028349255,20.2353,142.55,142.52,0.8488404]
[1720028349742,20.2356,142.54,142.52,0.8488404]
[1720028350137,13.22,142.53,142.52,0.8488404]
[1720028350568,20.2356,142.54,142.52,0.8488404]
[1720028350766,13.22,142.54,142.52,0.8488404]
[1720028351082,33.9226,142.58,142.52,0.8488404]
[1720028351083,20.236,142.53,142.52,0.8488404]
[1720028351640,13.22,142.53,142.52,0.8488404]
[1720028351857,7.0157,142.54,142.52,0.8488404]
[1720028352061,13.22,142.53,142.52,0.8488404]
[1720028352846,7.0157,142.54,142.52,0.8488404]
[1720028353046,13.22,142.53,142.52,0.8488404]
[1720028353446,20.236,142.53,142.52,0.8488404]
[1720028353647,40.236,142.53,142.52,0.8488404]
[1720028355846,27.016,142.53,142.52,0.8488404]
[1720028356071,40.236,142.53,142.52,0.8488404]
[1720028358482,56.3458,142.53,142.52,0.8488404]
[1720028358976,69.5658,142.53,142.52,0.8488404]
[1720028359353,69.5658,142.53,142.4,1.40376589]
[1720028359354,6.5375,142.51,142.4,15.1083]
[1720028359566,13.22,142.46,142.4,28.3283]
[1720028359765,13.22,142.46,142.4,45.884]
[1720028359956,13.22,142.46,142.4,32.664]
[1720028360267,20.2398,142.46,142.42,7.0214]
[1720028360465,20.0,142.5,142.42,17.5536]
[1720028360672,13.22,142.47,142.42,17.5536]
[1720028360863,13.22,142.47,142.43,8.4245484]
[1720028361063,7.019,142.47,142.43,7.0205]
[1720028361377,20.0,142.46,142.43,7.0205]
[1720028361677,6.5375,142.51,142.44,63.9547836]
[1720028361877,7.0185,142.48,142.44,69.5713]
[1720028362081,13.22,142.49,142.44,63.95468066]
[1720028362253,20.0,142.47,142.44,62.5509]
[1720028362583,20.2387,142.48,142.44,70.97499221]
[1720028362763,20.0,142.48,142.44,62.5509]
[1720028362955,20.0,142.48,142.46,7.0193]
[1720028363153,20.0,142.48,142.45,7.0199]
[1720028363361,20.0,142.48,142.46,45.0]
[1720028363559,20.0,142.48,142.45,7.0199]
[1720028363760,20.0,142.48,142.44,82.7911]
[1720028363960,27.0186,142.48,142.44,69.5711]
[1720028364259,40.2386,142.48,142.44,69.5711]
[1720028364957,40.2386,142.48,142.44,70.97491301]
[1720028365176,40.2386,142.48,142.44,69.5711]
[1720028365569,40.2386,142.48,142.44,62.5509]
[1720028365876,7.0191,142.47,142.44,17.5509]
[1720028366100,40.2386,142.48,142.44,24.5713]
[1720028366276,13.22,142.45,142.42,7.0213]
[1720028366653,20.2404,142.45,142.41,17.5541]
[1720028366856,20.2404,142.45,142.41,24.5757]
[1720028367086,17.5465,142.48,142.38,17.5577]
[1720028367087,13.22,142.42,142.38,17.5577]
[1720028367293,13.22,142.42,142.4,7.0224]
[1720028367986,13.22,142.43,142.4,7.0224]
[1720028368176,13.22,142.42,142.4,7.0224]
[1720028369279,7.023,142.39,142.37,0.8488404]
[1720028369489,7.0228,142.4,142.37,0.8488404]
[1720028369689,40.243,142.39,142.37,0.8488404]
[1720028369981,33.22,142.39,142.37,0.8488404]
[1720028370285,20.2434,142.38,142.37,0.8488404]
[1720028370659,40.2434,142.38,142.37,0.8488404]
[1720028371863,27.0234,142.38,142.37,0.8488404]
[1720028372458,20.0,142.38,142.37,0.8488404]
[1720028372764,16.5079,142.42,142.37,0.8488404]
[1720028372765,20.242,142.41,142.37,0.8488404]
[1720028372979,40.242,142.41,142.37,2.25345037]
[1720028373279,20.2425,142.4,142.37,0.8488404]
[1720028373603,7.023,142.39,142.37,0.8488404]
[1720028373785,6.31475891,142.43,142.37,0.8488404]
[1720028374085,7.021,142.43,142.39,7.0226]
[1720028374259,15.3032,142.46,142.4,53.42652771]
[1720028374465,23.7309,142.48,142.4,63.95982771]
[1720028374803,7.0196,142.46,142.41,7.0215]
[1720028374964,7.0201,142.45,142.42,45.0]
[1720028375167,23.7309,142.48,142.42,45.0]
[1720028375168,7.0195,142.46,142.42,52.0214]
[1720028375472,7.019,142.47,142.42,52.0214]
[1720028375676,7.0186,142.48,142.43,1.40386498]
[1720028375989,7.0179,142.5,142.45,7.0199]
[1720028376190,7.018,142.49,142.46,1.4036841]
[1720028376557,21.4869,142.52,142.46,1.4036841]
[1720028376756,17.5399,142.54,142.46,1.4036841]
[1720028376961,17.5399,142.54,142.45,52.0199]
[1720028377182,7.0184,142.49,142.45,45.0]
[1720028377391,7.0186,142.48,142.45,45.0]
[1720028377991,17.5399,142.54,142.45,46.40358883]
[1720028377992,17.5417,142.52,142.45,46.40358883]
[1720028378175,7.0191,142.47,142.45,45.0]
[1720028378374,7.0185,142.48,142.45,45.0]
[1720028378687,7.0185,142.48,142.46,1.40374471]
[1720028379096,7.0185,142.48,142.45,1.40372792]
[1720028379390,7.0191,142.47,142.45,1.40372792]
[1720028379783,17.5417,142.52,142.45,1.40372792]
[1720028379997,7.0196,142.46,142.44,45.0]
[1720028380288,7.0196,142.46,142.43,45.0]
[1720028380790,7.0191,142.47,142.43,52.0208]
[1720028381689,7.0195,142.46,142.43,45.0]
[1720028383279,7.0191,142.47,142.43,45.0]
[1720028383789,20.0,142.46,142.43,52.0209]
[1720028384785,20.0,142.46,142.44,7.0204]
[1720028384983,20.0,142.46,142.44,1.40398727]
[1720028385293,20.0,142.47,142.44,8.42438727]
[1720028385494,20.0,142.47,142.44,1.40398727]
[1720028386491,27.019,142.47,142.44,1.40398727]
[1720028387367,27.019,142.47,142.43,52.0208]
[1720028388504,27.019,142.47,142.43,45.0]
[1720028391382,7.0195,142.46,142.43,45.0]
[1720028393193,27.0191,142.47,142.44,1.40395]
[1720028393603,7.0204,142.44,142.43,45.0]
[1720028393790,7.0212,142.43,142.39,24.5796]
[1720028394091,7.0215,142.42,142.38,23.036]
[1720028394297,7.0224,142.41,142.38,16.0127]
[1720028394498,17.5513,142.44,142.38,16.0127]
[1720028394807,7.0216,142.42,142.37,7.8725404]
[1720028395303,7.0211,142.43,142.38,7.0233]
[1720028395512,7.0211,142.43,142.38,24.5818]
[1720028395980,7.0211,142.43,142.39,7.0229]
[1720028396179,7.0206,142.44,142.39,8.4272664]
[1720028396683,7.0206,142.44,142.39,7.0229]
[1720028397498,7.0204,142.45,142.4,17.5558]
[1720028397671,20.0,142.44,142.41,7.0219]
[1720028397871,20.0,142.44,142.42,7.0213]
[1720028398072,7.0197,142.46,142.42,7.0213]
[1720028398386,20.0,142.45,142.42,7.0213]
[1720028398699,20.0,142.45,142.42,24.5741]
[1720028398876,20.0,142.45,142.42,17.5529]
[1720028399203,27.02,142.45,142.41,7.0218]
[1720028399380,27.02,142.45,142.4,52.0222]
[1720028399577,27.02,142.45,142.41,8.42607655]
[1720028399779,27.02,142.45,142.41,7.0219]
[1720028400301,27.02,142.45,142.41,17.5546]
[1720028400302,20.0,142.45,142.41,17.5546]
[1720028400486,15.0783,142.49,142.42,45.0]
[1720028400681,20.0,142.48,142.42,45.0]
[1720028400881,27.0188,142.48,142.43,24.573]
[1720028401079,7.019,142.47,142.43,24.573]
[1720028401477,7.0196,142.46,142.43,17.5523]
[1720028401706,20.0,142.45,142.43,17.5523]
[1720028402508,20.0,142.45,142.43,24.573]
[1720028402707,20.0,142.46,142.43,24.573]
[1720028403313,7.0175,142.5,142.45,17.5491]
[1720028403675,7.0175,142.5,142.46,45.0]
[1720028404111,7.0175,142.5,142.46,52.0192]
[1720028404279,7.0186,142.48,142.45,17.5491]
[1720028404479,6.1454,142.52,142.42,17.7226]
[1720028404676,17.5444,142.5,142.43,45.0]
[1720028404985,7.0193,142.47,142.43,52.0207]
[1720028405494,7.0196,142.46,142.43,45.0]
[1720028405885,7.0192,142.47,142.43,45.0]
[1720028406090,7.0195,142.46,142.43,45.0]
[1720028406397,7.0195,142.46,142.34,25.0]
[1720028406398,6.5434,142.48,142.37,15.8851404]
[1720028406603,7.0222,142.41,142.37,0.8488404]
[1720028406899,7.0225,142.4,142.37,0.8488404]
[1720028407108,17.5515,142.44,142.37,0.8488404]
[1720028407610,7.0221,142.41,142.37,7.8726404]
[1720028407981,27.0214,142.43,142.38,18.96292933]
[1720028408204,27.0214,142.43,142.39,7.0229]
[1720028408513,27.0214,142.43,142.39,1.40435278]
[1720028408808,7.0215,142.42,142.39,46.40435278]
[1720028409230,27.0221,142.41,142.39,45.0]
[1720028409385,20.0,142.41,142.37,0.8488404]
[1720028409587,7.0223,142.41,142.37,0.8488404]
[1720028409882,20.0,142.44,142.37,0.8488404]
[1720028410088,7.0225,142.4,142.37,0.8488404]
[1720028410403,7.0221,142.41,142.37,0.8488404]
[1720028410712,17.5498,142.46,142.37,18.4083404]
[1720028410918,7.0215,142.42,142.38,45.0]
[1720028411130,7.0215,142.42,142.39,1.40435085]
[1720028411283,20.0,142.41,142.4,1.40426758]
[1720028411486,20.0,142.41,142.4,46.40426758]
[1720028411686,6.5434,142.48,142.41,17.5543]
[1720028412005,7.0206,142.44,142.4,52.0222]
[1720028412312,6.5434,142.48,142.4,52.0222]
[1720028412313,7.0211,142.43,142.4,45.0]
[1720028412605,17.5476,142.47,142.38,24.5807]
[1720028412606,7.0214,142.42,142.39,45.0]
[1720028413005,7.0206,142.44,142.4,7.0224]
[1720028413315,7.0206,142.44,142.41,45.0]
[1720028414012,17.5476,142.47,142.41,45.0]
[1720028414202,7.021,142.43,142.4,45.0]
[1720028416083,17.5502,142.45,142.37,0.8488404]
[1720028416283,7.0223,142.41,142.37,7.8727404]
[1720028416497,7.0223,142.41,142.38,46.40444424]
[1720028416718,7.0217,142.42,142.38,46.40444424]
[1720028417008,17.7202,142.45,142.38,45.0]
[1720028417214,20.0,142.44,142.38,45.0]
[1720028417603,7.0222,142.41,142.38,45.0]
[1720028417909,7.0225,142.4,142.37,18.4084404]
[1720028420220,7.023,142.39,142.37,0.8488404]
[1720028420518,7.0226,142.4,142.37,0.8488404]
[1720028421516,7.0234,142.38,142.37,0.8488404]
[1720028421732,7.0231,142.39,142.37,0.8488404]
[1720028421902,7.0226,142.4,142.37,0.8488404]
[1720028422700,13.4834,142.41,142.37,7.8727404]
[1720028423019,7.0221,142.41,142.37,7.8727404]
[1720028423223,20.0,142.4,142.37,9.2773273]
[1720028423392,20.0,142.4,142.37,7.8727404]
[1720028423594,20.0,142.4,142.37,9.27732661]
[1720028424921,27.0226,142.4,142.37,2.25342661]
[1720028425113,27.0226,142.4,142.37,0.8488404]
[1720028425417,20.0,142.4,142.37,0.8488404]
[1720028425718,20.0,142.4,142.37,2.2534266]
[1720028425920,20.0,142.4,142.37,0.8488404]
[1720028426229,20.0,142.41,142.38,7.023]
[1720028426419,20.0,142.41,142.39,45.0]
[1720028426628,27.022,142.41,142.39,45.0]
[1720028426807,27.022,142.41,142.38,45.0]
[1720028427517,20.0,142.41,142.38,45.0]
[1720028427710,27.0219,142.41,142.38,45.0]
[1720028428826,20.0,142.41,142.38,45.0]
[1720028429117,7.021,142.43,142.39,8.42707267]
[1720028429417,7.021,142.43,142.4,1.40428219]
[1720028429721,20.0,142.42,142.4,46.40428219]
[1720028431020,20.0,142.42,142.4,45.0]
[1720028431197,20.0,142.43,142.4,45.0]
[1720028431395,20.0,142.43,142.39,45.0]
[1720028431590,20.0,142.43,142.38,45.0]
[1720028431789,7.0219,142.41,142.38,45.0]
[1720028431992,7.0216,142.42,142.38,52.0233]
[1720028432823,7.0216,142.42,142.39,1.4042831]
[1720028433323,7.0216,142.42,142.4,1.40428184]
[1720028433498,7.0216,142.42,142.38,45.0]
[1720028433703,17.5513,142.44,142.38,45.0]
[1720028433917,7.0227,142.4,142.37,45.8488404]
[1720028434097,15.5129,142.47,142.37,0.8488404]
[1720028434098,7.0234,142.39,142.37,0.8488404]
[1720028435001,7.0225,142.4,142.37,0.8488404]
[1720028435598,7.0225,142.4,142.37,45.8488404]
[1720028435798,7.023,142.39,142.37,45.8488404]
[1720028436108,7.0221,142.41,142.37,0.8488404]
[1720028436309,7.0221,142.41,142.37,7.8726404]
[1720028436619,7.0215,142.42,142.38,52.0234]
[1720028436819,7.0211,142.43,142.38,69.582]
[1720028437011,15.5129,142.47,142.39,7.0229]
[1720028437320,15.5129,142.47,142.41,7.0219]
[1720028437518,7.0204,142.45,142.41,7.0219]
[1720028437726,7.0215,142.42,142.38,45.0]
[1720028438416,7.0215,142.42,142.38,52.0232]
[1720028439517,17.5515,142.44,142.38,45.0]
[1720028439715,7.0226,142.4,142.38,45.0]
[1720028441327,20.0,142.43,142.38,46.40448029]
[1720028441505,0.17,142.45,142.38,46.40448029]
[1720028441826,7.0217,142.42,142.38,53.42748029]
[1720028442217,20.0,142.41,142.38,53.42748029]
[1720028442518,20.0,142.41,142.38,52.023]
[1720028442716,20.0,142.41,142.38,45.0]
[1720028443036,27.022,142.41,142.38,45.0]
[1720028443396,20.0,142.41,142.37,0.8488404]
[1720028443640,20.0,142.4,142.37,0.8488404]
[1720028443803,23.8406,142.43,142.37,0.8488404]
[1720028444131,7.0234,142.38,142.37,0.8488404]
[1720028447432,7.0231,142.39,142.37,0.8488404]
[1720028448731,7.0234,142.38,142.37,0.8488404]
[1720028449136,27.0234,142.38,142.37,0.8488404]
[1720028449841,27.0234,142.38,142.37,1e-08]
[1720028450821,27.3634,142.38,142.37,1e-08]
[1720028451235,17.5606,142.37,142.28,7.0279]
[1720028451430,7.0265,142.32,142.28,7.0279]
[1720028452740,0.17,142.33,142.24,17.575]
[1720028452913,7.0284,142.28,142.24,17.575]
[1720028453117,7.0274,142.3,142.25,1.40571706]
[1720028453318,7.0268,142.32,142.27,7.0288]
[1720028453540,20.0,142.31,142.27,8.43427491]
[1720028453840,7.026,142.33,142.29,7.0277]
[1720028454041,35.1099,142.41,142.29,7.0277]
[1720028454042,7.04697756,142.38,142.29,15.9298]
[1720028454242,7.0269,142.31,142.26,29.5575]
[1720028454458,7.0265,142.32,142.27,69.6005]
[1720028455119,7.0265,142.32,142.28,7.0282]
[1720028455322,7.026,142.33,142.29,45.0]
[1720028455522,20.0,142.32,142.29,45.0]
[1720028456166,23.0979189,142.38,142.3,7.0269]
[1720028456440,5.5388189,142.38,142.32,7.0264]
[1720028456631,22.2706,142.4,142.29,71.58]
[1720028456817,7.0247,142.36,142.32,7.0263]
[1720028457018,22.2706,142.4,142.3,17.5675]
[1720028457019,7.025,142.35,142.3,17.5675]
[1720028457225,7.0254,142.34,142.31,45.0]
[1720028457635,7.025,142.35,142.31,52.0268]
[1720028457950,7.025,142.35,142.31,53.43183016]
[1720028458750,7.025,142.35,142.31,45.0]
[1720028459116,7.025,142.35,142.31,53.43183532]
[1720028459317,17.5577,142.39,142.32,7.0263]
[1720028459515,7.0236,142.38,142.33,45.0]
[1720028459729,7.0236,142.38,142.33,52.0258]
[1720028459928,7.023,142.39,142.34,7.0253]
[1720028460135,7.0226,142.4,142.36,7.0244]
[1720028460343,7.0226,142.4,142.37,1.40456598]
[1720028460552,7.023,142.39,142.37,45.0]
[1720028461733,7.0226,142.4,142.36,45.0]
[1720028462955,7.023,142.39,142.36,45.0]
[1720028463149,17.5527,142.43,142.36,45.0]
[1720028463366,7.0224,142.4,142.36,45.0]
[1720028463672,7.0224,142.4,142.35,52.0248]
[1720028465855,7.023,142.39,142.35,52.0248]
[1720028469358,7.0223,142.41,142.35,45.0]
[1720028469566,7.0223,142.41,142.36,18.96520799]
[1720028469748,7.0223,142.41,142.37,52.0238]
[1720028469950,7.0213,142.43,142.38,17.5584]
[1720028470145,7.0214,142.42,142.39,45.0]
[1720028470756,7.022,142.41,142.39,45.0]
[1720028470956,7.022,142.41,142.38,45.0]
[1720028471770,7.022,142.41,142.37,45.0]
[1720028472265,7.0207,142.44,142.4,7.0224]
[1720028472453,7.0207,142.44,142.41,45.0]
[1720028473340,7.021,142.43,142.41,45.0]
[1720028473565,7.021,142.43,142.4,45.0]
[1720028473766,7.023,142.39,142.34,15.1151]
[1720028473941,17.552,142.44,142.37,7.0239]
[1720028474240,7.0217,142.42,142.37,7.0239]
[1720028474442,7.0217,142.42,142.38,7.0234]
[1720028474648,20.0,142.41,142.37,24.5833]
[1720028475067,20.0,142.41,142.36,7.0243]
[1720028475267,7.0221,142.41,142.37,45.0]
[1720028475657,7.0221,142.41,142.37,52.0238]
[1720028477972,7.0221,142.41,142.37,45.0]
[1720028478274,7.0225,142.4,142.37,45.0]
[1720028478447,6.4145,142.41,142.33,17.5642]
[1720028478653,7.0234,142.38,142.34,7.0253]
[1720028478846,7.0231,142.39,142.34,7.0253]
[1720028479254,20.0,142.38,142.34,7.0253]
[1720028479475,7.0231,142.39,142.34,7.0253]
[1720028479665,20.0,142.38,142.35,17.5619]
[1720028479867,7.0232,142.39,142.36,45.0]
[1720028480060,27.0237,142.38,142.36,45.0]
[1720028480253,27.0237,142.38,142.35,45.0]
[1720028480447,7.024,142.37,142.35,45.0]
[1720028480647,7.024,142.37,142.34,45.0]
[1720028480848,20.0,142.38,142.34,65.3253]
[1720028480849,27.0236,142.38,142.34,65.3253]
[1720028481054,20.0,142.38,142.35,7.0249]
[1720028481472,20.0,142.38,142.35,20.3249]
[1720028481775,20.0,142.39,142.37,20.3238]
[1720028482350,7.0224,142.4,142.37,13.3]
[1720028482650,20.0,142.39,142.37,13.3]
[1720028483475,20.0,142.39,142.38,45.0]
[1720028483772,27.0229,142.39,142.36,45.0]
[1720028484279,20.0,142.39,142.33,17.5636]
[1720028484577,7.023,142.39,142.35,7.0249]
[1720028484753,20.0,142.38,142.36,45.0]
[1720028485349,20.0,142.38,142.35,45.0]
[1720028486778,20.0,142.38,142.35,52.0248]
[1720028486958,27.0235,142.38,142.35,45.0]
[1720028487287,7.0239,142.37,142.34,45.0]
[1720028488961,27.0236,142.38,142.34,45.0]
[1720028489781,7.0244,142.36,142.34,45.0]
[1720028489987,7.0241,142.37,142.34,45.0]
[1720028493704,20.0,142.38,142.34,45.0]
[1720028493999,6.4145,142.41,142.32,7.0262]
[1720028494000,7.024,142.37,142.32,7.0262]
[1720028494198,20.0,142.36,142.33,7.0258]
[1720028494493,7.0236,142.38,142.33,7.0258]
[1720028494794,20.0,142.37,142.33,7.0257]
[1720028495172,20.0,142.37,142.34,45.0]
[1720028496083,6.4145,142.41,142.35,7.0249]
[1720028496264,7.0228,142.4,142.36,45.0]
[1720028497189,7.0229,142.39,142.36,45.0]
[1720028497692,7.0229,142.39,142.35,45.0]
[1720028498789,7.0225,142.4,142.35,45.0]
[1720028498983,6.4145,142.41,142.35,45.0]
[1720028499197,20.0,142.4,142.36,7.0243]
[1720028500274,27.0226,142.4,142.37,45.0]
[1720028500673,27.0226,142.4,142.36,45.0]
[1720028502481,7.0229,142.39,142.36,45.0]
[1720028502682,20.0,142.4,142.32,21.08]
[1720028502883,7.0236,142.38,142.33,8.43038882]
[1720028503394,7.0236,142.38,142.34,1.40468915]
[1720028504107,7.0236,142.38,142.34,46.40468915]
[1720028504398,7.0236,142.38,142.34,45.0]
[1720028505667,7.0231,142.39,142.34,73.1053]
[1720028505869,7.0231,142.39,142.37,13.29]
[1720028506074,7.0231,142.39,142.38,45.0]
[1720028506684,27.0231,142.39,142.38,45.0]
[1720028506892,20.0,142.39,142.38,45.0]
[1720028509074,15.6208,142.42,142.38,45.0]
[1720028509075,7.0221,142.41,142.38,58.29]
[1720028509285,7.0218,142.42,142.4,13.29]
[1720028509587,7.0218,142.42,142.41,13.29]
[1720028510693,7.0218,142.42,142.4,13.29]
[1720028510909,7.0218,142.42,142.4,14.69426817]
[1720028511884,7.0218,142.42,142.4,13.29]
[1720028513000,7.0211,142.43,142.41,46.40426782]
[1720028513177,37.0108,142.45,142.37,17.5597]
[1720028513374,7.0222,142.41,142.39,13.29]
[1720028513585,7.0222,142.41,142.4,45.0]
[1720028513778,7.0216,142.42,142.4,45.0]
[1720028513979,7.0219,142.41,142.4,45.0]
[1720028516077,15.2576,142.46,142.4,62.5556]
[1720028516278,17.46126154,142.49,142.43,13.29]
[1720028516505,7.0198,142.46,142.44,45.0]
[1720028516814,13.29,142.48,142.44,45.0]
[1720028516815,7.02,142.45,142.44,45.0]
[1720028517176,7.02,142.45,142.43,45.0]
[1720028517606,7.0197,142.46,142.43,45.0]
[1720028517995,20.0,142.45,142.43,45.0]
[1720028518182,20.0,142.45,142.43,58.29]
[1720028519104,15.7473,142.54,142.45,21.08]
[1720028519307,7.0164,142.53,142.5,13.29]
[1720028519604,7.0164,142.53,142.46,67.82335496]
[1720028519605,7.0161,142.53,142.48,24.564]
[1720028519803,7.0161,142.53,142.51,13.29]
[1720028520009,7.0161,142.53,142.5,13.29]
[1720028520211,7.0166,142.52,142.5,13.29]